bitfinex/quotes_ETHUSD_20241212
["timestamp","ask_amount","ask_price","bid_price","bid_amount"]
[1733990651639,0.7726,3912.1,3911.3,0.03518687]
[1733990651856,1.105466,3912.1,3911.3,0.03518687]
[1733990652055,1.34226242,3912.1,3911.3,0.03518687]
[1733990652358,1.105466,3912.1,3911.3,0.03518687]
[1733990652565,1.34226242,3912.1,3911.3,0.03518687]
[1733990652860,1.105466,3912.1,3911.3,0.03518687]
[1733990653067,1.34226242,3912.1,3911.3,0.03518687]
[1733990653363,1.105466,3912.1,3911.3,0.03518687]
[1733990653514,1.34226242,3912.1,3911.3,0.03518687]
[1733990653715,1.105466,3912.1,3911.3,0.03518687]
[1733990653920,1.34226242,3912.1,3911.3,0.03518687]
[1733990654172,1.105466,3912.1,3911.3,0.03518687]
[1733990654311,1.34226242,3912.1,3911.3,0.03518687]
[1733990654506,1.105466,3912.1,3911.3,0.03518687]
[1733990655451,0.23685002,3912.0,3911.3,0.03518687]
[1733990655655,1.105466,3912.1,3911.3,0.03518687]
[1733990655859,0.23684324,3912.0,3911.3,0.03518687]
[1733990656417,1.105466,3912.1,3911.3,0.03518687]
[1733990656659,0.23684267,3912.0,3911.3,0.03518687]
[1733990656956,0.23684267,3912.2,3911.5,2.55655]
[1733990657160,0.7726,3912.4,3911.5,2.55655]
[1733990657357,0.23685731,3912.3,3911.6,0.03560385]
[1733990657563,0.23685731,3912.2,3911.6,0.03560385]
[1733990657759,0.7726,3912.4,3911.6,0.03560385]
[1733990658056,0.23685326,3912.3,3911.6,0.03560385]
[1733990658261,0.23685326,3912.2,3911.6,2.59208385]
[1733990658568,5.4931791,3913.3,3911.6,2.59208385]
[1733990658569,0.23685326,3912.3,3911.8,3.0]
[1733990658734,2.3601708,3913.0,3911.8,3.0]
[1733990658735,0.23689346,3912.9,3912.2,2.55608]
[1733990658935,0.7726,3913.0,3912.2,2.55608]
[1733990659149,0.7726,3913.0,3912.3,0.03557946]
[1733990659768,0.23688524,3912.9,3912.3,0.03557946]
[1733990660092,0.23688644,3912.9,3912.3,0.03557946]
[1733990660442,0.7726,3913.0,3912.3,0.03557946]
[1733990661092,0.55,3913.5,3912.4,0.7965]
[1733990661299,0.55,3913.3,3912.4,0.7965]
[1733990661591,0.23683813,3913.2,3912.5,0.0356871]
[1733990661757,0.55,3913.3,3912.5,0.0356871]
[1733990662160,0.23682278,3913.2,3912.5,0.0356871]
[1733990662372,0.23682278,3913.3,3912.5,0.0356871]
[1733990663283,0.23679026,3913.2,3912.5,0.0356871]
[1733990663489,0.7726,3913.4,3912.5,0.0356871]
[1733990663490,0.23679026,3913.3,3912.5,0.0356871]
[1733990663986,0.23679026,3913.2,3912.5,0.0356871]
[1733990664188,0.23679026,3913.3,3912.5,0.0356871]
[1733990664375,0.23676798,3913.3,3912.5,0.0356871]
[1733990664578,0.23676798,3913.3,3912.5,2.5915771]
[1733990664777,0.7726,3913.4,3912.5,2.5915771]
[1733990665090,0.55,3913.5,3912.6,3.7576]
[1733990665305,0.78676798,3913.5,3912.7,0.0349023]
[1733990665612,0.55,3913.6,3912.7,0.0349023]
[1733990665915,0.23676798,3913.5,3912.7,0.0349023]
[1733990666597,0.23676798,3913.4,3912.7,0.0349023]
[1733990666795,0.23676798,3913.5,3912.7,0.0349023]
[1733990666974,0.23676798,3913.4,3912.7,0.0349023]
[1733990667148,0.23676798,3913.5,3912.7,0.0349023]
[1733990667350,0.55,3913.7,3912.7,0.0349023]
[1733990667652,0.55,3913.5,3912.7,0.0349023]
[1733990667867,0.78670744,3913.5,3912.7,0.0349023]
[1733990668065,0.55,3913.5,3912.7,0.0349023]
[1733990668305,0.78670744,3913.6,3912.7,0.0349023]
[1733990668484,0.23670744,3913.5,3912.7,0.0349023]
[1733990669164,0.55,3913.6,3912.7,0.0349023]
[1733990669372,0.78670744,3913.6,3912.7,0.0349023]
[1733990669572,0.55,3913.6,3912.7,0.0349023]
[1733990669769,0.78670744,3913.6,3912.7,0.0349023]
[1733990669958,0.55,3913.6,3912.7,0.0349023]
[1733990670187,0.78670744,3913.6,3912.7,0.0349023]
[1733990670506,0.55,3913.6,3912.7,0.0349023]
[1733990670705,0.78664066,3913.7,3912.7,0.0349023]
[1733990671019,1.82598053,3914.1,3913.3,2.84009618]
[1733990671233,0.7676,3914.1,3913.4,0.01691144]
[1733990671390,0.23663957,3913.6,3913.4,0.03387624]
[1733990671578,0.7676,3914.6,3913.4,0.7576]
[1733990671922,0.7676,3914.6,3913.5,0.03387603]
[1733990671923,0.56882853,3914.5,3913.5,0.03387603]
[1733990672086,0.23661753,3914.4,3913.5,0.03387603]
[1733990672410,0.55,3914.3,3913.5,0.03387603]
[1733990672569,0.55,3914.4,3913.5,0.03387603]
[1733990672773,0.78661753,3914.4,3913.5,0.03387603]
[1733990672967,1.23072138,3914.4,3913.4,0.7576]
[1733990673518,1.23072138,3914.4,3913.5,0.03387603]
[1733990673728,3.78540138,3914.4,3913.5,0.03387603]
[1733990673879,3.54878385,3914.4,3913.5,0.03387603]
[1733990674210,0.55,3914.2,3913.5,0.03387603]
[1733990674374,2.55481,3914.2,3913.5,0.03387603]
[1733990674569,0.7676,3914.0,3913.5,0.03387603]
[1733990675108,0.7676,3914.0,3913.6,0.03344045]
[1733990675608,0.7676,3914.0,3913.4,0.7576]
[1733990675825,0.7676,3914.0,3913.7,0.03344023]
[1733990676023,0.7676,3914.0,3913.4,0.7576]
[1733990676176,0.7676,3914.0,3913.8,0.03344002]
[1733990676376,0.7676,3914.0,3913.4,0.7576]
[1733990676377,0.310481,3914.1,3913.4,0.7576]
[1733990677120,0.310481,3914.1,3913.5,0.03344066]
[1733990679478,0.55,3913.9,3913.5,0.03344066]
[1733990679686,0.55,3913.9,3912.7,3.7576]
[1733990679921,0.55,3913.9,3912.8,0.03121273]
[1733990680723,2.55513,3913.7,3912.9,0.7576]
[1733990681037,2.55519,3913.6,3912.9,0.7576]
[1733990681342,0.55,3913.7,3913.0,0.0312123]
[1733990682608,0.51319639,3914.3,3913.0,0.0312123]
[1733990682609,0.1,3914.9,3914.0,0.7576]
[1733990682808,0.1,3914.9,3914.4,2.84009618]
[1733990683142,0.1,3914.9,3914.6,2.55451]
[1733990683432,0.1,3914.9,3914.7,0.7576]
[1733990683590,0.1,3914.9,3914.7,0.78851628]
[1733990683791,0.1,3914.9,3914.7,3.34296628]
[1733990684145,0.1,3914.9,3914.7,0.78851628]
[1733990687165,0.1,3914.9,3914.7,0.03091628]
[1733990687663,0.1,3914.9,3914.4,3.59769618]
[1733990688260,0.1,3914.9,3914.5,0.02977831]
[1733990689310,0.1,3914.9,3914.1,4.56832349]
[1733990689311,0.365426,3914.9,3914.1,4.56832349]
[1733990689515,0.365426,3914.9,3914.2,0.02977896]
[1733990690348,0.1,3914.9,3914.2,0.02977896]
[1733990691410,0.1,3914.9,3914.2,0.48388044]
[1733990692672,0.55,3915.1,3914.2,0.48388044]
[1733990693333,0.78633146,3915.2,3914.2,0.48388044]
[1733990697638,0.55,3915.2,3914.2,0.48388044]
[1733990697838,0.78633146,3915.2,3914.2,0.48388044]
[1733990698054,0.15539315,3915.1,3914.2,0.48388044]
[1733990699434,0.55,3915.2,3914.3,1.26950148]
[1733990699634,0.78633146,3915.2,3914.3,1.26950148]
[1733990699883,0.55,3915.2,3914.4,0.02931043]
[1733990700034,0.78633146,3915.2,3914.4,0.02931043]
[1733990700381,0.33403615,3915.1,3914.4,0.02931043]
[1733990700589,0.57036761,3915.1,3914.4,0.02931043]
[1733990700751,0.55,3915.2,3914.5,3.0]
[1733990700975,0.78633146,3915.2,3914.5,3.0]
[1733990701179,0.55,3915.2,3914.6,0.02901193]
[1733990701427,0.78633146,3915.2,3914.6,0.02901193]
[1733990701561,0.23633146,3915.1,3914.6,0.02901193]
[1733990701758,0.57037461,3915.1,3914.4,2.84009618]
[1733990702293,0.23633146,3915.1,3914.5,0.02901214]
[1733990704492,0.8298,3915.0,3914.5,0.02901214]
[1733990705284,0.8298,3915.0,3914.7,1.3317534]
[1733990705534,0.23655131,3915.1,3914.8,0.02870433]
[1733990705956,0.23655131,3915.1,3914.7,1.3317534]
[1733990706236,0.23655131,3915.1,3914.9,0.02771462]
[1733990706534,0.23655131,3915.0,3914.7,1.3317534]
[1733990706825,0.23655131,3915.0,3914.8,0.8179]
[1733990707030,0.23655131,3915.1,3914.8,0.8179]
[1733990707348,0.55,3915.2,3914.8,0.8179]
[1733990707548,0.236637,3915.1,3914.8,0.8179]
[1733990707705,0.236637,3915.0,3914.7,1.3317534]
[1733990708041,0.55,3915.1,3914.7,1.3317534]
[1733990708241,0.236637,3915.0,3914.7,1.3317534]
[1733990708533,0.78665502,3915.1,3914.7,1.3317534]
[1733990708713,0.55,3915.1,3914.7,1.3317534]
[1733990708920,0.23665154,3915.0,3914.7,1.3317534]
[1733990709235,0.55,3915.4,3914.7,1.77860488]
[1733990709541,0.23668924,3915.3,3915.0,1.3317534]
[1733990709692,0.23668924,3915.2,3915.0,2.1046534]
[1733990709895,0.23670891,3915.4,3915.1,1.3317534]
[1733990710124,0.23671043,3915.3,3915.1,1.3317534]
[1733990710344,0.23671043,3915.4,3915.1,1.3317534]
[1733990710526,0.23671043,3915.3,3915.1,1.3317534]
[1733990710696,0.1,3915.5,3915.1,1.3317534]
[1733990710893,0.23682441,3915.4,3914.8,1.3317534]
[1733990711097,0.1,3915.5,3914.8,1.3317534]
[1733990711098,0.23682441,3915.3,3914.8,2.1046534]
[1733990711395,0.23697046,3915.2,3915.1,1.3317534]
[1733990711599,0.55,3915.4,3915.1,1.3317534]
[1733990711999,0.23697268,3915.3,3915.1,1.3317534]
[1733990712314,0.55,3915.4,3915.1,1.3317534]
[1733990712632,0.23723878,3915.3,3915.1,1.3317534]
[1733990712934,0.23723878,3915.2,3915.1,1.3317534]
[1733990713698,0.23723878,3915.2,3915.1,1.35786779]
[1733990714100,0.1,3915.5,3915.1,1.35786779]
[1733990714308,0.2372235,3915.4,3915.1,1.35786779]
[1733990714514,0.2372235,3915.3,3915.1,1.35786779]
[1733990714734,0.1,3915.5,3915.1,1.35786779]
[1733990715048,0.23719081,3915.4,3915.1,0.02611439]
[1733990715258,0.23719081,3915.3,3915.1,0.02611439]
[1733990715541,0.1,3915.5,3914.8,2.1046534]
[1733990715542,0.23719081,3915.2,3914.8,2.1046534]
[1733990715835,0.1,3915.5,3914.8,2.1046534]
[1733990716079,0.23716589,3915.4,3914.8,2.1046534]
[1733990716255,0.23716589,3915.3,3914.8,2.1046534]
[1733990716573,0.23716589,3915.2,3914.8,2.1046534]
[1733990716774,0.1,3915.5,3914.8,2.1046534]
[1733990717072,0.23714875,3915.4,3914.8,2.1046534]
[1733990717302,0.23714875,3915.3,3914.8,2.1046534]
[1733990717575,0.23714875,3915.2,3914.8,2.1046534]
[1733990717733,0.1,3915.5,3914.8,2.1046534]
[1733990717928,0.1,3915.5,3914.3,9.23685148]
[1733990717929,0.23712416,3915.4,3914.4,3.0]
[1733990718134,0.55,3915.3,3914.0,0.4120241]
[1733990718397,0.55,3914.5,3913.6,0.7729]
[1733990718676,0.55,3914.3,3913.6,2.1046534]
[1733990719063,0.23697197,3914.2,3913.6,2.1046534]
[1733990719239,0.23697197,3914.1,3913.6,2.1046534]
[1733990719640,0.2368739,3914.5,3913.9,1.3317534]
[1733990719939,0.2368739,3914.4,3913.9,1.3317534]
[1733990720134,0.2368739,3914.3,3913.9,1.3317534]
[1733990720339,0.2368739,3914.2,3913.9,1.3317534]
[1733990720640,0.2368739,3914.2,3913.6,0.7729]
[1733990720641,0.23681734,3914.1,3913.6,0.7729]
[1733990720863,0.23681734,3914.0,3913.6,0.7729]
[1733990721071,0.23681734,3913.9,3913.6,0.7729]
[1733990721385,0.55,3914.5,3913.6,0.7729]
[1733990721585,0.55,3914.3,3913.6,0.7729]
[1733990721783,0.23672408,3914.2,3913.6,0.7729]
[1733990721988,0.55,3914.3,3913.6,0.7729]
[1733990721989,0.23672408,3914.1,3913.6,0.7729]
[1733990722194,0.23671904,3914.2,3913.6,0.7729]
[1733990722404,0.55,3914.3,3913.6,0.7729]
[1733990722954,0.23667451,3914.2,3913.6,0.7729]
[1733990723177,0.9772219,3914.3,3913.6,0.7729]
[1733990723505,0.23664583,3914.2,3913.6,0.7729]
[1733990723731,0.23664583,3914.1,3913.6,0.7729]
[1733990724036,0.55,3914.0,3913.6,0.7729]
[1733990724233,0.78664583,3914.0,3913.6,0.7729]
[1733990724529,0.503,3914.0,3913.6,0.7729]
[1733990724827,0.503,3914.0,3913.2,0.8254]
[1733990725128,0.73964583,3914.0,3913.2,0.8254]
[1733990725287,0.503,3914.0,3913.2,0.8254]
[1733990725799,2.55468,3914.4,3913.2,0.8254]
[1733990725985,2.79138583,3914.3,3913.2,0.8254]
[1733990726186,0.23664583,3914.2,3913.2,0.8254]
[1733990726394,0.23664583,3914.1,3913.2,0.8254]
[1733990726694,0.55,3914.1,3913.2,0.8254]
[1733990727010,0.78664583,3914.1,3913.2,0.8254]
[1733990727213,0.55,3914.1,3913.2,0.8254]
[1733990728301,0.78641798,3914.1,3913.2,0.8254]
[1733990729227,0.55,3914.1,3913.2,0.8254]
[1733990729424,0.78638032,3914.1,3913.2,0.8254]
[1733990730240,0.55,3914.1,3913.2,0.8254]
[1733990731081,0.78633497,3914.1,3913.2,0.8254]
[1733990732641,0.55,3914.1,3913.2,0.8254]
[1733990732843,0.78630382,3914.1,3913.2,0.8254]
[1733990733744,0.78627489,3914.1,3913.2,0.8254]
[1733990734046,0.55,3914.2,3913.2,0.8254]
[1733990734343,0.55,3914.0,3913.2,0.8254]
[1733990734852,0.55,3914.1,3913.2,0.8254]
[1733990735616,0.55,3913.8,3913.2,0.8254]
[1733990735820,0.55,3913.6,3912.8,0.7974]
[1733990736230,3.1052,3913.6,3912.8,0.7974]
[1733990737860,0.55,3913.3,3912.8,0.7974]
[1733990738465,0.55,3913.2,3912.8,0.7974]
[1733990738764,0.55,3913.2,3912.1,0.7974]
[1733990738765,0.860539,3913.2,3912.1,0.7974]
[1733990738973,2.55552,3913.1,3912.1,0.7974]
[1733990739138,0.55,3913.0,3912.1,0.7974]
[1733990739817,3.1056,3913.0,3912.1,0.7974]
[1733990741128,0.55,3913.0,3912.1,0.7974]
[1733990741557,2.55509,3913.8,3912.6,2.55581]
[1733990741793,0.55,3913.7,3912.7,0.7974]
[1733990741921,0.68654,3913.7,3912.7,0.7974]
[1733990742815,0.8154,3914.0,3912.9,0.7974]
[1733990742977,1.05144492,3914.0,3912.9,0.7974]
[1733990743875,0.23613008,3914.0,3912.9,2.55562]
[1733990744086,0.23613008,3914.1,3913.0,0.7974]
[1733990744410,0.23613008,3914.0,3913.0,0.7974]
[1733990744570,3.17856436,3914.1,3913.0,0.7974]
[1733990744780,1.05153008,3914.0,3913.0,0.7974]
[1733990744958,0.8154,3914.0,3913.0,0.7974]
[1733990745161,1.05153008,3914.0,3913.0,0.7974]
[1733990745507,0.23613008,3913.9,3913.0,0.7974]
[1733990746307,0.23613008,3913.8,3913.0,0.7974]
[1733990746517,0.23613008,3913.7,3913.0,0.7974]
[1733990746811,0.8154,3914.0,3913.0,0.7974]
[1733990746951,0.47298003,3913.9,3913.0,0.7974]
[1733990747154,0.23649114,3913.9,3913.0,0.7974]
[1733990747474,0.23649038,3913.8,3913.0,0.7974]
[1733990747675,0.78649038,3913.7,3913.0,0.7974]
[1733990747906,0.55,3913.5,3913.0,0.7974]
[1733990748088,0.13364904,3913.4,3913.0,0.7974]
[1733990748904,0.23653536,3913.3,3913.0,0.7974]
[1733990749106,0.23653536,3913.2,3912.3,0.8107]
[1733990749316,0.78653536,3913.1,3912.3,0.8107]
[1733990749452,0.23653536,3913.0,3912.3,0.8107]
[1733990749656,0.23648936,3913.0,3912.3,0.8107]
[1733990749925,0.55,3913.1,3912.3,0.8107]
[1733990750393,0.23649083,3913.0,3912.3,0.8107]
[1733990750727,0.23649083,3912.9,3912.3,0.8107]
[1733990751031,0.23649083,3913.0,3912.3,0.8107]
[1733990752235,0.65308252,3913.0,3912.3,0.8107]
[1733990752378,0.23640444,3912.9,3912.3,0.8107]
[1733990752580,0.23640444,3912.8,3912.3,0.8107]
[1733990752897,2.5556,3913.0,3912.3,0.8107]
[1733990753090,0.23633381,3912.9,3912.3,0.8107]
[1733990753297,0.55,3912.5,3911.4,1.1262099]
[1733990753536,0.23633381,3912.4,3911.4,3.6828299]
[1733990753685,0.55,3912.6,3911.4,3.6828299]
[1733990754025,0.23633381,3912.5,3911.4,3.6828299]
[1733990755323,0.78633381,3912.6,3911.4,3.6828299]
[1733990755693,0.55,3912.4,3911.2,0.7699]
[1733990755901,0.23633381,3912.3,3911.2,0.7699]
[1733990756120,0.23633381,3912.2,3911.2,0.7699]
[1733990756297,0.23633381,3912.3,3911.2,0.7699]
[1733990756480,1.01466877,3912.4,3911.2,0.7699]
[1733990757042,3.02042714,3912.4,3911.2,0.7699]
[1733990757187,0.38437271,3912.3,3911.2,0.7699]
[1733990757385,0.8233,3912.2,3911.0,3.0]
[1733990757589,0.8233,3912.2,3911.0,5.55688]
[1733990757901,1.05939218,3912.2,3911.0,5.55688]
[1733990758884,0.1,3912.0,3911.0,5.55688]
[1733990759240,0.1,3912.0,3911.1,2.55681]
[1733990759685,0.1,3912.0,3910.9,3.32421273]
[1733990759887,0.1,3912.0,3911.1,3.0]
[1733990760123,0.1,3912.0,3911.1,5.5568]
[1733990761846,0.1,3912.0,3910.3,1.28209536]
[1733990761847,0.8233,3911.9,3910.3,1.28209536]
[1733990762058,3.38006,3911.2,3910.3,0.7699]
[1733990762356,3.38006,3911.2,3909.8,8.79]
[1733990762357,2.55687,3911.1,3909.8,8.79]
[1733990762569,2.55687,3911.1,3909.8,0.7699]
[1733990762938,2.55687,3911.1,3909.8,3.32757]
[1733990763307,2.55687,3911.1,3909.9,0.02254485]
[1733990763591,0.338017,3911.0,3909.9,0.02254485]
[1733990764694,0.8233,3911.2,3910.2,0.7699]
[1733990764923,0.8233,3911.6,3910.5,6.32711]
[1733990765037,0.9233,3912.0,3910.6,0.7699]
[1733990765234,0.9233,3912.0,3910.9,2.55695]
[1733990765556,0.9233,3912.0,3911.0,0.7699]
[1733990765729,0.9233,3912.0,3911.0,0.79463194]
[1733990766082,0.9233,3912.0,3911.0,3.35151194]
[1733990768407,1.271234,3912.0,3911.0,3.35151194]
[1733990769237,0.9233,3912.0,3911.3,2.55668]
[1733990769433,0.9233,3912.0,3911.0,0.79463194]
[1733990769434,0.1,3912.0,3911.6,2.55646]
[1733990769939,0.1,3912.0,3911.7,0.02438617]
[1733990770593,0.7908,3911.9,3911.8,0.02438596]
[1733990770958,0.55,3913.0,3911.5,0.765]
[1733990771138,0.55,3912.8,3911.8,0.02438596]
[1733990771338,3.10572,3912.8,3911.6,0.02438639]
[1733990771543,3.61758907,3912.8,3911.5,3.32155]
[1733990771776,3.61758907,3912.8,3911.7,0.02392177]
[1733990772095,0.47583927,3912.9,3911.8,0.02392156]
[1733990772096,0.40934283,3912.7,3911.8,0.02392156]
[1733990772245,0.47583927,3912.9,3911.8,2.58027156]
[1733990772582,0.47583927,3912.9,3912.0,0.765]
[1733990772747,2.55538,3913.4,3912.0,0.765]
[1733990773139,2.55519,3913.6,3912.0,0.765]
[1733990773489,2.55509,3913.8,3912.4,2.55591]
[1733990773991,2.55534,3913.4,3912.5,0.02326789]
[1733990774301,1.17637091,3913.3,3912.5,0.02326789]
[1733990774598,3.34619,3913.3,3912.0,3.32122]
[1733990774894,3.34619,3913.3,3912.6,0.02295315]
[1733990775036,3.34619,3913.3,3912.0,3.32122]
[1733990775235,3.34619,3913.3,3912.7,0.02295294]
[1733990775478,3.34619,3913.3,3912.0,3.32122]
[1733990775671,0.7908,3913.3,3912.8,0.02295273]
[1733990775874,0.334606,3913.2,3912.1,2.55616]
[1733990776323,0.334606,3913.2,3912.0,0.765]
[1733990776463,0.334606,3913.2,3912.2,2.55608]
[1733990777747,0.334606,3913.2,3912.3,2.55603]
[1733990779102,0.334606,3913.2,3912.0,3.32117]
[1733990779455,0.3680756,3913.1,3912.0,0.765]
[1733990779750,0.7908,3912.9,3911.7,3.32142]
[1733990781840,0.7908,3912.9,3911.8,2.55636]
[1733990782536,0.7908,3912.9,3911.9,2.55626]
[1733990783049,0.7908,3912.9,3911.7,0.765]
[1733990783050,0.7908,3912.9,3911.7,3.59648503]
[1733990783327,0.7908,3912.9,3912.0,2.55622]
[1733990784232,0.7732,3913.1,3912.1,0.8252]
[1733990784391,1.36579473,3913.1,3912.1,0.8252]
[1733990784593,1.12967679,3913.1,3912.1,0.8252]
[1733990784902,1.36570505,3913.1,3912.1,0.8252]
[1733990785116,3.92123734,3913.1,3912.1,0.8252]
[1733990785324,3.56476055,3913.1,3912.1,0.8252]
[1733990785486,0.23604055,3913.0,3912.1,0.8252]
[1733990786330,2.79162055,3913.0,3912.1,0.8252]
[1733990786638,0.23604055,3912.9,3912.1,0.8252]
[1733990786987,0.7732,3913.1,3912.1,0.8252]
[1733990787246,1.00922596,3913.1,3912.1,0.8252]
[1733990787595,1.00922596,3913.1,3912.1,3.40692001]
[1733990787792,0.7732,3913.1,3912.1,3.38136]
[1733990788659,0.7732,3913.1,3912.1,0.8252]
[1733990788943,0.35646701,3913.0,3912.1,0.8252]
[1733990789246,0.23601007,3913.0,3912.1,0.8252]
[1733990789549,0.7732,3912.8,3911.7,3.65668503]
[1733990789713,1.00921007,3912.8,3911.7,3.65668503]
[1733990790697,1.36569708,3912.8,3911.7,3.65668503]
[1733990791011,0.7732,3912.5,3911.7,3.8252]
[1733990791631,0.7732,3912.5,3911.4,5.38809503]
[1733990791632,2.556,3912.4,3911.4,0.8252]
[1733990791948,0.7732,3912.3,3911.1,3.38196]
[1733990792150,0.7732,3912.3,3911.3,2.55667]
[1733990792298,0.7732,3912.3,3911.4,2.55661]
[1733990792729,0.7732,3912.8,3911.7,0.8252]
[1733990792910,1.36566788,3912.8,3911.7,0.8252]
[1733990793464,0.23598444,3912.7,3911.7,0.8252]
[1733990794295,0.23644886,3912.6,3911.7,0.8252]
[1733990794496,0.23644886,3912.7,3911.8,2.83148503]
[1733990794794,0.7732,3912.8,3911.8,2.83148503]
[1733990795346,0.23649018,3912.7,3912.1,0.8252]
[1733990795563,0.23649018,3913.0,3912.3,2.556]
[1733990795850,0.7732,3913.1,3912.2,2.83148503]
[1733990796055,0.23657399,3913.0,3912.2,2.83148503]
[1733990796197,0.23657399,3912.9,3912.2,2.83148503]
[1733990796398,0.7732,3913.1,3912.2,2.83148503]
[1733990796627,0.23656571,3913.0,3912.2,2.83148503]
[1733990796828,0.23656571,3912.9,3912.2,2.83148503]
[1733990797014,0.7732,3913.1,3912.2,2.83148503]
[1733990797231,0.23657846,3913.0,3912.2,5.38758503]
[1733990797393,0.23657846,3912.9,3912.3,2.55602]
[1733990797600,0.23657846,3912.9,3912.2,2.83148503]
[1733990797601,0.7732,3913.1,3912.2,2.83148503]
[1733990797826,0.23662919,3913.0,3912.5,2.55589]
[1733990798053,0.52256082,3913.7,3912.5,2.55589]
[1733990798232,1.42344383,3913.6,3912.5,2.55589]
[1733990798404,0.2366407,3913.5,3912.5,2.55589]
[1733990798598,1.18680313,3913.6,3912.5,2.55589]
[1733990798599,0.2366407,3913.4,3912.5,2.55589]
[1733990798847,0.2366407,3913.3,3912.2,5.38752503]
[1733990799065,0.2366407,3913.2,3912.2,2.83148503]
[1733990799266,0.2366407,3913.1,3912.2,2.83148503]
[1733990799558,0.2366407,3913.0,3912.3,2.55602]
[1733990799861,1.0098407,3912.9,3912.1,6.21281503]
[1733990800013,0.7732,3912.9,3912.2,2.55609]
[1733990800768,0.23676836,3912.8,3912.2,2.55609]
[1733990800965,0.7732,3912.9,3912.2,2.55609]
[1733990801115,0.23677512,3912.8,3912.2,2.55609]
[1733990801458,0.7732,3912.9,3912.2,2.55609]
[1733990801615,0.23681467,3912.8,3912.2,2.55609]
[1733990801814,0.7732,3912.9,3912.3,2.55603]
[1733990803775,0.7732,3912.9,3912.2,3.0]
[1733990803983,0.23687175,3912.8,3912.1,3.65668503]
[1733990804144,0.7732,3912.9,3912.1,3.65668503]
[1733990804475,0.23686119,3912.8,3912.1,6.21284503]
[1733990804624,0.7732,3912.9,3912.1,3.65668503]
[1733990804825,0.7732,3912.9,3912.2,2.5561]
[1733990805068,0.23686704,3912.8,3912.2,2.5561]
[1733990805273,0.7732,3912.9,3912.2,2.5561]
[1733990805481,0.23686817,3912.8,3912.2,2.5561]
[1733990805682,0.7732,3912.9,3912.2,2.5561]
[1733990805885,0.23685659,3912.8,3912.2,2.5561]
[1733990806038,0.7732,3912.9,3912.2,2.5561]
[1733990807081,0.23685182,3912.8,3912.2,2.5561]
[1733990807283,0.7732,3912.9,3912.2,2.5561]
[1733990807634,0.23685402,3912.8,3912.1,0.8252]
[1733990807995,0.7732,3912.6,3911.8,8.79]
[1733990808280,0.23684088,3912.5,3911.8,8.79]
[1733990808432,0.23684088,3912.4,3911.8,8.79]
[1733990808632,2.55591,3912.5,3911.8,8.79]
[1733990808875,0.7732,3912.3,3911.4,0.8252]
[1733990809180,0.23682071,3912.2,3911.4,0.8252]
[1733990809351,0.23682071,3912.1,3911.4,3.8252]
[1733990809536,0.7732,3912.3,3911.4,3.8252]
[1733990809736,0.23677238,3912.2,3911.4,3.8252]
[1733990809936,0.23677238,3912.1,3911.4,3.8252]
[1733990810154,0.7732,3912.3,3911.4,3.8252]
[1733990810338,0.23677246,3912.2,3911.4,3.8252]
[1733990810584,0.23675115,3912.1,3911.4,3.8252]
[1733990810797,0.7732,3912.3,3911.4,3.8252]
[1733990810949,0.23671036,3912.2,3911.4,6.38181]
[1733990811284,0.7732,3912.3,3911.4,6.38181]
[1733990811433,0.23668744,3912.2,3911.4,6.38181]
[1733990811638,0.7732,3912.3,3911.4,6.38181]
[1733990811952,0.2366438,3912.2,3911.4,6.38181]
[1733990812164,0.7732,3912.3,3911.6,2.55648]
[1733990812372,0.7732,3912.3,3911.7,3.0]
[1733990812570,0.7655,3912.8,3911.9,0.8161]
[1733990812734,0.23661381,3912.7,3911.8,1.06860064]
[1733990812934,0.23661381,3912.6,3911.8,4.21804952]
[1733990813261,1.097608,3912.8,3911.9,1.21825506]
[1733990813438,1.097608,3912.8,3911.8,3.0]
[1733990813439,0.23660628,3912.7,3911.8,6.62493064]
[1733990813642,0.23660628,3912.6,3911.9,1.21822264]
[1733990813983,0.23660216,3912.5,3911.8,5.55633]
[1733990814187,0.7655,3912.8,3911.9,1.21827885]
[1733990814488,0.23659329,3912.7,3912.0,1.21838069]
[1733990814699,0.7655,3912.8,3912.1,2.55616]
[1733990814895,0.7655,3912.8,3912.1,2.83148503]
[1733990815104,0.7655,3912.8,3912.5,5.38738503]
[1733990815394,0.23660845,3913.2,3912.5,5.38738503]
[1733990815561,1.00210126,3913.1,3912.5,5.38738503]
[1733990815766,0.23660126,3913.0,3912.5,5.38738503]
[1733990815981,0.7655,3913.1,3912.5,5.38738503]
[1733990816303,0.23661099,3913.4,3912.9,5.38712503]
[1733990816451,0.23657311,3913.7,3913.0,0.8161]
[1733990816797,0.7655,3913.8,3913.0,0.8161]
[1733990816798,0.7655,3913.8,3913.0,2.03441159]
[1733990817006,0.7655,3913.8,3913.3,2.83148503]
[1733990817007,0.23658652,3913.7,3913.3,2.83148503]
[1733990817207,1.58796972,3914.3,3913.3,2.83148503]
[1733990817208,0.7655,3914.1,3913.3,5.38685503]
[1733990817501,0.23662874,3914.0,3913.3,2.83148503]
[1733990817687,0.23662874,3913.9,3913.3,2.83148503]
[1733990817849,0.7655,3914.1,3913.3,2.83148503]
[1733990818047,0.23656318,3914.0,3913.3,2.83148503]
[1733990818250,0.23656318,3913.9,3913.3,2.83148503]
[1733990818597,0.23656318,3914.0,3913.3,2.83148503]
[1733990818749,0.23656318,3913.9,3913.3,2.83148503]
[1733990819094,0.23656318,3914.0,3913.3,2.83148503]
[1733990819308,0.23656318,3913.9,3913.3,2.83148503]
[1733990819995,0.37821424,3914.0,3913.3,2.83148503]
[1733990820162,0.23656318,3913.9,3913.3,2.83148503]
[1733990820350,0.7655,3914.1,3913.3,2.83148503]
[1733990820746,0.23646167,3914.0,3913.3,2.83148503]
[1733990821089,0.7655,3913.8,3912.9,2.83148503]
[1733990821252,0.23646167,3913.7,3912.7,8.79]
[1733990821473,0.23646167,3913.6,3912.7,8.79]
[1733990821678,0.7655,3913.4,3912.5,2.83148503]
[1733990821879,0.23646167,3913.3,3912.5,2.83148503]
[1733990822506,0.2364749,3913.2,3912.5,2.83148503]